fUST/lending_fUST_20240117
["ID","MTS","AMOUNT","RATE_DAILY","PERIOD"]
[311823373,1705438239183,-629.59813165,0.0003178,2]
[311823375,1705438239193,-500.0,0.0003178,2]
[311823377,1705438239202,-500.0,0.0003178,2]
[311823379,1705438239211,-500.0,0.0003178,2]
[311823382,1705438239222,-500.0,0.0003178,2]
[311823383,1705438239231,-500.0,0.0003178,2]
[311823385,1705438239240,-500.0,0.0003178,2]
[311823387,1705438239249,-500.0,0.0003178,2]
[311823389,1705438239258,-500.97034978,0.0003178,2]
[311823391,1705438239267,-500.0,0.0003178,2]
[311823393,1705438239276,-500.0,0.0003178,2]
[311823395,1705438239285,-500.0,0.0003178,2]
[311823397,1705438239295,-500.0,0.0003178,2]
[311823399,1705438239304,-500.0,0.0003178,2]
[311823401,1705438239315,-500.0,0.0003178,2]
[311823403,1705438239324,-500.0,0.0003178,2]
[311823405,1705438239333,-550.67156865,0.0003178,2]
[311823407,1705438239342,-500.0,0.0003178,2]
[311823409,1705438239352,-500.0,0.0003178,2]
[311823411,1705438239360,-500.0,0.0003178,2]
[311823413,1705438239370,-500.0,0.0003178,2]
[311823415,1705438239379,-500.0,0.0003178,2]
[311823418,1705438239389,-852.9,0.0003178,2]
[311823420,1705438239398,-500.0,0.0003178,2]
[311823422,1705438239407,-500.0,0.0003178,2]
[311823423,1705438239416,-500.0,0.0003178,2]
[311823425,1705438239425,-500.0,0.0003178,2]
[311823427,1705438239434,-500.0,0.0003178,2]
[311823429,1705438239443,-500.0,0.0003178,2]
[311823431,1705438239451,-500.0,0.0003178,2]
[311823433,1705438239460,-150.0,0.0003178,2]
[311823435,1705438239471,-500.0,0.0003178,2]
[311823437,1705438239480,-553.64,0.0003178,2]
[311823439,1705438239488,-500.0,0.0003178,2]
[311823441,1705438239498,-500.0,0.0003178,2]
[311823443,1705438239506,-500.0,0.0003178,4]
[311823445,1705438239516,-500.0,0.0003178,2]
[311823447,1705438239526,-500.0,0.0003178,2]
[311823450,1705438239536,-500.0,0.0003178,2]
[311823452,1705438239544,-500.0,0.0003178,2]
[311823454,1705438239553,-500.0,0.0003178,2]
[311823456,1705438239562,-641.4544874,0.0003178,2]
[311823458,1705438239571,-639.1,0.0003178,2]
[311823460,1705438239580,-500.0,0.0003178,2]
[311823461,1705438239589,-500.0,0.0003178,2]
[311823463,1705438239598,-500.0,0.0003178,2]
[311823465,1705438239606,-500.0,0.0003178,2]
[311823467,1705438239616,-500.0,0.0003178,2]
[311823469,1705438239625,-1079.74,0.0003178,2]
[311823471,1705438239634,-500.0,0.0003178,2]
[311823473,1705438239642,-500.0,0.0003178,2]
[311823475,1705438239651,-500.0,0.0003178,2]
[311823477,1705438239661,-500.0,0.0003178,2]
[311823479,1705438239670,-500.0,0.0003178,2]
[311823481,1705438239679,-500.0,0.0003178,2]
[311823483,1705438239688,-500.0,0.0003178,2]
[311823485,1705438239697,-500.0,0.0003178,2]
[311823487,1705438239706,-500.0,0.0003178,2]
[311823489,1705438239715,-500.0,0.0003178,2]
[311823491,1705438239724,-520.3,0.0003178,2]
[311823493,1705438239733,-500.0,0.0003178,2]
[311823495,1705438239742,-500.0,0.0003178,2]
[311823497,1705438239752,-500.0,0.0003178,2]
[311823499,1705438239762,-500.0,0.0003178,2]
[311823501,1705438239771,-500.0,0.0003178,2]
[311823503,1705438239782,-501.22663069,0.0003178,2]
[311823505,1705438239798,-500.0,0.0003178,2]
[311823507,1705438239807,-320.62715329,0.0003178,2]
[311823509,1705438239817,-763.07,0.0003178,2]
[311823511,1705438239828,-500.0,0.0003178,2]
[311823513,1705438239837,-500.0,0.0003178,2]
[311823515,1705438239846,-500.0,0.0003178,2]
[311823517,1705438239855,-500.0,0.0003178,2]
[311823519,1705438239864,-500.0,0.0003178,2]
[311823521,1705438239874,-500.0,0.0003178,2]
[311823523,1705438239883,-500.0,0.0003178,2]
[311823525,1705438239892,-500.0,0.0003178,2]
[311823527,1705438239901,-500.0,0.0003178,2]
[311823529,1705438239910,-500.0,0.0003178,2]
[311823540,1705438240001,-413.27206186,0.0003178,2]
[311823542,1705438240011,-500.0,0.0003178,2]
[311823544,1705438240020,-500.0,0.0003178,2]
[311823546,1705438240029,-500.0,0.0003178,2]
[311823548,1705438240038,-361.94622459,0.0003178,2]
[311823550,1705438240047,-500.0,0.0003178,2]
[311823552,1705438240056,-500.0,0.0003178,2]
[311823554,1705438240065,-500.0,0.0003178,2]
[311823556,1705438240074,-1859.13,0.0003178,2]
[311823558,1705438240083,-500.0,0.0003178,2]
[311823560,1705438240092,-500.0,0.0003178,2]
[311823562,1705438240100,-500.0,0.0003178,2]
[311823564,1705438240110,-6776.97,0.0003178,2]
[311823566,1705438240119,-500.0,0.0003178,2]
[311823567,1705438240128,-500.0,0.0003178,2]
[311823569,1705438240137,-4524.58,0.0003178,2]
[311823572,1705438240147,-1656.18,0.0003178,2]
[311823574,1705438240155,-1394.0,0.0003178,2]
[311823576,1705438240165,-384.32366264,0.0003178,2]
[311823578,1705438240174,-500.0,0.0003178,2]
[311823579,1705438240184,-500.0,0.0003178,2]
[311823581,1705438240193,-500.0,0.0003178,2]
[311823584,1705438240202,-1262.43,0.0003178,2]
[311823586,1705438240211,-534.62,0.0003178,2]
[311823588,1705438240222,-500.0,0.0003178,2]
[311823590,1705438240231,-500.0,0.0003178,2]
[311823592,1705438240240,-512.99285901,0.0003178,2]
[311823594,1705438240249,-500.0,0.0003178,2]
[311823595,1705438240258,-205.26014526,0.0003178,2]
[311823597,1705438240267,-262.80785604,0.0003178,2]
[311823599,1705438240275,-500.0,0.0003178,2]
[311823601,1705438240285,-500.0,0.0003178,2]
[311823603,1705438240293,-2151.26,0.0003178,2]
[311823605,1705438240302,-500.0,0.0003178,2]
[311823608,1705438240311,-503.80866795,0.0003178,2]
[311823610,1705438240320,-1145.58,0.0003178,2]
[311823612,1705438240329,-536.48,0.0003178,2]
[311823615,1705438240339,-500.0,0.0003178,2]
[311823616,1705438240349,-837.58,0.0003178,2]
[311823618,1705438240357,-500.0,0.0003178,2]
[311823620,1705438240366,-501.32561282,0.0003178,2]
[311823622,1705438240375,-500.0,0.0003178,2]
[311823625,1705438240385,-207.349602,0.0003178,2]
[311823627,1705438240394,-500.0,0.0003178,2]
[311823629,1705438240402,-500.0,0.0003178,2]
[311823632,1705438240411,-500.0,0.0003178,2]
[311823634,1705438240420,-500.0,0.0003178,2]
[311823637,1705438240429,-500.0,0.0003178,2]
[311823639,1705438240440,-500.0,0.0003178,2]
[311823641,1705438240449,-534.200587,0.0003178,2]
[311823643,1705438240458,-500.0,0.0003178,2]
[311823645,1705438240468,-500.0,0.0003178,2]
[311823647,1705438240477,-150.96032138,0.0003178,2]
[311823649,1705438240485,-500.0,0.0003178,2]
[311823651,1705438240494,-500.0,0.0003178,2]
[311823653,1705438240503,-500.0,0.0003178,2]
[311823654,1705438240511,-500.0,0.0003178,2]
[311823656,1705438240520,-500.0,0.0003178,2]
[311823658,1705438240529,-21302.75,0.0003178,2]
[311823660,1705438240538,-11228.43,0.0003178,2]
[311823662,1705438240547,-625.42,0.0003178,2]
[311823664,1705438240556,-500.0,0.0003178,2]
[311823666,1705438240565,-500.0,0.0003178,2]
[311823668,1705438240573,-500.0,0.0003178,2]
[311823670,1705438240582,-500.0,0.0003178,2]
[311823672,1705438240591,-500.0,0.0003178,2]
[311823674,1705438240600,-4587.06,0.0003178,2]
[311823676,1705438240609,-500.0,0.0003178,2]
[311823678,1705438240618,-807.86,0.0003178,2]
[311823680,1705438240627,-500.0,0.0003178,2]
[311823683,1705438240637,-500.0,0.0003178,2]
[311823684,1705438240646,-500.0,0.0003178,2]
[311823686,1705438240655,-502.45515726,0.0003178,2]
[311823688,1705438240663,-500.0,0.0003178,2]
[311823690,1705438240672,-557.73,0.0003178,2]
[311823692,1705438240681,-500.0,0.0003178,2]
[311823694,1705438240690,-500.0,0.0003178,2]
[311823697,1705438240700,-500.0,0.0003178,2]
[311823699,1705438240709,-500.0,0.0003178,2]
[311823700,1705438240720,-562.03,0.0003178,2]
[311823702,1705438240729,-500.0,0.0003178,2]
[311823704,1705438240738,-500.0,0.0003178,2]
[311823707,1705438240747,-500.0,0.0003178,2]
[311823708,1705438240756,-500.0,0.0003178,2]
[311823711,1705438240765,-500.0,0.0003178,2]
[311823712,1705438240774,-500.0,0.0003178,2]
[311823714,1705438240785,-1269.02,0.0003178,2]
[311823716,1705438240796,-500.0,0.0003178,2]
[311823719,1705438240805,-500.0,0.0003178,2]
[311823721,1705438240815,-500.0,0.0003178,2]
[311823723,1705438240824,-500.0,0.0003178,2]
[311823725,1705438240833,-500.0,0.0003178,2]
[311823726,1705438240843,-200.69824697,0.0003178,2]
[311823729,1705438240853,-817.52,0.0003178,2]
[311823730,1705438240862,-4272.18,0.0003178,2]
[311823732,1705438240871,-500.0,0.0003178,2]
[311823734,1705438240880,-500.0,0.0003178,5]
[311823736,1705438240889,-506.47400644,0.0003178,2]
[311823739,1705438240899,-206.0511363,0.0003178,2]
[311823740,1705438240908,-1659.58,0.0003178,2]
[311823742,1705438240919,-1570.7,0.0003178,2]
[311823744,1705438240928,-904.25,0.0003178,2]
[311823746,1705438240937,-500.0,0.0003178,2]
[311823748,1705438240947,-500.0,0.0003178,2]
[311823750,1705438240956,-500.0,0.0003178,2]
[311823752,1705438240965,-500.0,0.0003178,2]
[311823754,1705438240974,-500.0,0.0003178,2]
[311823756,1705438240983,-1036.14,0.0003178,2]
[311823758,1705438240992,-500.0,0.0003178,2]
[311823760,1705438241002,-550.0,0.0003178,2]
[311823762,1705438241011,-500.0,0.0003178,2]
[311823764,1705438241020,-522.88,0.0003178,2]
[311823766,1705438241029,-500.0,0.0003178,2]
[311823768,1705438241039,-504.59283408,0.0003178,2]
[311823770,1705438241049,-500.86629979,0.0003178,2]
[311823772,1705438241058,-500.0,0.0003178,2]
[311823774,1705438241067,-500.0,0.0003178,2]
[311823776,1705438241076,-654.41,0.0003178,2]
[311823778,1705438241085,-500.0,0.0003178,2]
[311823780,1705438241093,-500.0,0.0003178,2]
[311823781,1705438241102,-5250.73,0.0003178,2]
[311823783,1705438241111,-500.0,0.0003178,2]
[311823785,1705438241120,-500.0,0.0003178,2]
[311823787,1705438241129,-1245.02,0.0003178,2]
[311823789,1705438241138,-500.0,0.00031916,2]
[311823791,1705438241147,-500.0,0.00031916,2]
[311823793,1705438241156,-500.0,0.00031916,2]
[311823795,1705438241166,-500.0,0.00031916,2]
[311823797,1705438241175,-225.87141791,0.00031917,2]
[311823799,1705438241184,-500.0,0.00031917,2]
[311823801,1705438241193,-539.87,0.00031917,2]
[311823803,1705438241202,-500.0,0.00031917,2]
[311823805,1705438241211,-500.0,0.00031917,2]
[311823807,1705438241222,-500.0,0.00031917,2]
[311823809,1705438241230,-500.0,0.00031917,2]
[311823811,1705438241239,-500.0,0.00031917,2]
[311823813,1705438241248,-500.0,0.00031917,2]
[311823815,1705438241258,-500.0,0.00031917,2]
[311823817,1705438241266,-500.0,0.00031917,2]
[311823819,1705438241275,-500.0,0.00031917,2]
[311823821,1705438241284,-500.0,0.00031917,2]
[311823823,1705438241293,-500.0,0.00031917,2]
[311823825,1705438241301,-500.0,0.00031917,2]
[311823827,1705438241310,-502.53367144,0.00031917,2]
[311823829,1705438241319,-852.9,0.00031917,2]
[311823831,1705438241328,-500.0,0.00031917,2]
[311823833,1705438241337,-500.0,0.00031917,2]
[311823835,1705438241346,-500.0,0.00031917,2]
[311823837,1705438241356,-500.0,0.00031917,2]
[311823839,1705438241365,-500.0,0.00031917,2]
[311823841,1705438241374,-150.0,0.00031917,2]
[311823843,1705438241384,-553.64,0.00031917,2]
[311823845,1705438241393,-186.77148725,0.00031917,2]
[311823847,1705438241402,-500.0,0.00031917,4]
[311823849,1705438241411,-500.0,0.00031917,2]
[311823851,1705438241420,-288.3056488,0.00031917,2]
[311823853,1705438241428,-500.0,0.00031917,2]
[311823855,1705438241437,-639.1,0.00031917,2]
[311823857,1705438241446,-507.38053104,0.00031917,2]
[311823859,1705438241455,-553.52808701,0.00031917,2]
[311823861,1705438241465,-500.0,0.00031917,2]
[311823863,1705438241474,-500.0,0.00031917,2]
[311823865,1705438241483,-1079.74,0.00031917,2]
[311823867,1705438241492,-500.0,0.00031917,2]
[311823869,1705438241501,-336.87464268,0.00031917,2]
[311823871,1705438241511,-500.0,0.00031917,2]
[311823873,1705438241519,-500.0,0.00031917,2]
[311823875,1705438241528,-500.0,0.00031917,2]
[311823877,1705438241537,-500.0,0.00031917,2]
[311823879,1705438241546,-500.0,0.00031917,2]
[311823881,1705438241554,-500.0,0.00031917,2]
[311823883,1705438241563,-500.0,0.00031917,2]
[311823885,1705438241572,-500.0,0.00031917,2]
[311823887,1705438241581,-520.3,0.00031917,2]
[311823889,1705438241590,-500.0,0.00031917,2]
[311823891,1705438241599,-498.48161421,0.00031917,2]
[311823893,1705438241608,-500.0,0.00031917,2]
[311823895,1705438241616,-500.0,0.00031917,2]
[311823897,1705438241625,-260.51193698,0.00031917,2]
[311823899,1705438241634,-500.0,0.00031917,2]
[311823901,1705438241643,-763.07,0.00031917,2]
[311823903,1705438241652,-500.0,0.00031917,2]
[311823905,1705438241661,-500.0,0.00031917,2]
[311823907,1705438241670,-500.0,0.00031917,2]
[311823909,1705438241679,-500.0,0.00031917,2]
[311823911,1705438241688,-500.0,0.00031917,2]
[311823913,1705438241697,-500.0,0.00031917,2]
[311823915,1705438241706,-500.0,0.00031917,2]
[311823917,1705438241715,-500.0,0.00031917,2]
[311823919,1705438241724,-1859.13,0.00031917,2]
[311823920,1705438241734,-500.0,0.00031917,2]
[311823923,1705438241743,-500.0,0.00031917,2]
[311823924,1705438241752,-500.0,0.00031917,2]
[311823926,1705438241761,-6776.97,0.00031917,2]
[311823928,1705438241771,-255.17026208,0.00031917,2]
[311823931,1705438241783,-500.0,0.00031917,2]
[311823940,1705438241863,-4524.58,0.00031917,2]
[311823942,1705438241872,-1656.18,0.00031917,2]
[311823944,1705438241881,-1394.0,0.00031917,2]
[311823946,1705438241890,-500.0,0.00031917,2]
[311823948,1705438241899,-500.0,0.00031917,2]
[311823950,1705438241908,-500.0,0.00031917,2]
[311823952,1705438241917,-1262.43,0.00031917,2]
[311823954,1705438241926,-534.62,0.00031917,2]
[311823956,1705438241937,-500.0,0.00031917,2]
[311823958,1705438241946,-500.0,0.00031917,2]
[311823960,1705438241955,-500.0,0.00031917,2]
[311823962,1705438241964,-500.0,0.00031917,2]
[311823964,1705438241973,-2151.26,0.00031917,2]
[311823966,1705438241983,-1145.58,0.00031917,2]
[311823968,1705438241992,-536.48,0.00031917,2]
[311823970,1705438242002,-500.0,0.00031917,2]
[311823972,1705438242011,-837.58,0.00031917,2]
[311823974,1705438242021,-500.0,0.00031917,2]
[311823976,1705438242030,-511.67588667,0.00031917,2]
[311823978,1705438242039,-500.0,0.00031917,2]
[311823980,1705438242048,-500.0,0.00031917,2]
[311823982,1705438242058,-500.0,0.00031917,2]
[311823984,1705438242067,-500.0,0.00031917,2]
[311823986,1705438242075,-265.03424588,0.00031917,2]
[311823988,1705438242084,-500.0,0.00031917,2]
[311823990,1705438242093,-500.0,0.00031917,2]
[311823992,1705438242102,-21302.75,0.00031917,2]
[311823994,1705438242111,-11228.43,0.00031917,2]
[311823996,1705438242120,-625.42,0.00031917,2]
[311823998,1705438242129,-500.0,0.00031917,2]
[311824000,1705438242138,-500.0,0.00031917,2]
[311824002,1705438242147,-500.0,0.00031917,2]
[311824004,1705438242156,-500.0,0.00031917,2]
[311824006,1705438242165,-500.0,0.00031917,2]
[311824008,1705438242175,-4587.06,0.00031917,2]
[311824010,1705438242184,-807.86,0.00031917,2]
[311824012,1705438242193,-500.0,0.00031917,2]
[311824014,1705438242203,-500.0,0.00031917,2]
[311824017,1705438242213,-500.0,0.00031917,2]
[311824019,1705438242224,-160.53656634,0.00031917,2]
[311824021,1705438242232,-557.73,0.00031917,2]
[311824023,1705438242242,-500.0,0.00031917,2]
[311824025,1705438242252,-500.0,0.00031917,2]
[311824026,1705438242261,-500.0,0.00031917,2]
[311824028,1705438242270,-500.0,0.00031917,2]
[311824030,1705438242278,-562.03,0.00031917,2]
[311824032,1705438242287,-500.0,0.00031917,2]
[311824034,1705438242296,-500.0,0.00031917,2]
[311824036,1705438242308,-500.0,0.00031917,2]
[311824038,1705438242319,-500.0,0.00031917,2]
[311824040,1705438242331,-500.0,0.00031917,2]
[311824042,1705438242341,-503.44599568,0.00031917,2]
[311824044,1705438242352,-1269.02,0.00031917,2]
[311824047,1705438242364,-378.84943896,0.00031917,2]
[311824049,1705438242373,-500.0,0.00031917,2]
[311824050,1705438242383,-500.0,0.00031917,2]
[311824052,1705438242393,-500.0,0.00031917,2]
[311824054,1705438242404,-817.52,0.00031917,2]
[311824057,1705438242414,-3227.32559353,0.00031917,2]
[311824059,1705438242433,-1044.85440647,0.00031917,2]
[311824061,1705438242443,-1659.58,0.00031917,2]
[311824064,1705438242453,-1570.7,0.00031917,2]
[311824065,1705438242463,-904.25,0.00031917,2]
[311824067,1705438242474,-500.0,0.00031917,2]
[311824069,1705438242484,-500.0,0.00031917,2]
[311824072,1705438242494,-500.0,0.00031917,2]
[311824073,1705438242503,-500.0,0.00031917,2]
[311824076,1705438242513,-1036.14,0.00031917,2]
[311824078,1705438242523,-500.0,0.00031917,2]
[311824079,1705438242534,-406.72734997,0.00031917,2]
[311824104,1705438242844,-2485.64659726,0.0002497,2]
[311824105,1705438242854,-1509.69945911,0.0003177,3]
[311824106,1705438242865,-124.56054089,0.0003177,3]
[311824107,1705438242877,-500.0,0.0003178,2]
[311824108,1705438242886,-500.0,0.0003178,2]
[311824109,1705438242895,-116.15265003,0.00031917,2]
[311824110,1705438242904,-500.0,0.00031917,2]
[311824111,1705438242913,-500.0,0.00031917,2]
[311824112,1705438242922,-500.0,0.00031917,2]
[311824113,1705438242931,-654.41,0.00031917,2]
[311824114,1705438242940,-500.0,0.00031917,2]
[311824115,1705438242950,-500.0,0.00031917,2]
[311824116,1705438242959,-5250.73,0.00031917,2]
[311824117,1705438242968,-500.0,0.00031917,2]
[311824118,1705438242977,-500.0,0.00031917,2]
[311824119,1705438242986,-1245.02,0.00031917,2]
[311824120,1705438242996,-500.0,0.00031917,2]
[311824121,1705438243005,-500.0,0.00031999,2]
[311824123,1705438243014,-150.0,0.00032,2]
[311824125,1705438243023,-2000.0,0.00032,2]
[311824127,1705438243032,-500.0,0.00032,3]
[311824129,1705438243040,-2000.0,0.0003201,2]
[311824130,1705438243049,-2000.0,0.0003202,2]
[311824133,1705438243059,-2000.0,0.0003203,2]
[311824135,1705438243069,-2000.0,0.0003204,2]
[311824136,1705438243078,-2000.0,0.0003205,2]
[311824138,1705438243087,-500.0,0.00032053,2]
[311824140,1705438243096,-500.0,0.00032053,2]
[311824142,1705438243105,-446.93269506,0.00032053,2]
[311824144,1705438243114,-500.0,0.00032053,4]
[311824146,1705438243124,-395.51978159,0.00032053,4]
[311824148,1705438243132,-462.84297544,0.00032053,4]
[311824150,1705438243141,-500.0,0.00032053,4]
[311824152,1705438243151,-152.51091202,0.00032053,4]
[311824154,1705438243159,-580.51504945,0.00032053,4]
[311824156,1705438243169,-168.36163645,0.00032053,4]
[311824158,1705438243178,-500.0,0.00032053,4]
[311824160,1705438243188,-500.0,0.00032053,4]
[311824162,1705438243197,-500.0,0.00032054,2]
[311824164,1705438243206,-539.87,0.00032054,2]
[311824166,1705438243215,-500.0,0.00032054,2]
[311824168,1705438243225,-500.0,0.00032054,2]
[311824170,1705438243234,-500.0,0.00032054,2]
[311824172,1705438243243,-500.0,0.00032054,2]
[311824174,1705438243252,-500.0,0.00032054,2]
[311824176,1705438243261,-500.0,0.00032054,2]
[311824178,1705438243269,-500.0,0.00032054,2]
[311824180,1705438243278,-500.0,0.00032054,2]
[311824182,1705438243287,-500.0,0.00032054,2]
[311824184,1705438243296,-500.0,0.00032054,2]
[311824185,1705438243305,-852.9,0.00032054,2]
[311824187,1705438243314,-500.0,0.00032054,2]
[311824189,1705438243323,-500.0,0.00032054,2]
[311824191,1705438243332,-150.0,0.00032054,2]
[311824193,1705438243342,-553.64,0.00032054,2]
[311824195,1705438243351,-500.0,0.00032054,4]
[311824197,1705438243360,-500.0,0.00032054,2]
[311824199,1705438243370,-500.0,0.00032054,2]
[311824201,1705438243380,-639.1,0.00032054,2]
[311824203,1705438243391,-500.0,0.00032054,2]
[311824205,1705438243400,-500.0,0.00032054,2]
[311824207,1705438243410,-1079.74,0.00032054,2]
[311824209,1705438243420,-500.0,0.00032054,2]
[311824211,1705438243430,-500.0,0.00032054,2]
[311824213,1705438243440,-500.0,0.00032054,2]
[311824215,1705438243451,-333.93342136,0.00032054,2]
[311824217,1705438243461,-500.0,0.00032054,2]
[311824219,1705438243472,-228.54049167,0.00032054,2]
[311824221,1705438243482,-520.3,0.00032054,2]
[311824223,1705438243492,-500.0,0.00032054,2]
[311824225,1705438243502,-500.0,0.00032054,2]
[311824227,1705438243513,-500.0,0.00032054,2]
[311824229,1705438243523,-763.07,0.00032054,2]
[311824231,1705438243533,-500.0,0.00032054,2]
[311824233,1705438243544,-500.0,0.00032054,2]
[311824235,1705438243554,-500.0,0.00032054,2]
[311824237,1705438243565,-500.0,0.00032054,2]
[311824239,1705438243574,-1859.13,0.00032054,2]
[311824241,1705438243585,-500.0,0.00032054,2]
[311824243,1705438243595,-500.0,0.00032054,2]
[311824245,1705438243604,-500.0,0.00032054,2]
[311824255,1705438243679,-500.0,0.00032054,2]
[311824257,1705438243690,-4524.58,0.00032054,2]
[311824259,1705438243699,-1656.18,0.00032054,2]
[311824261,1705438243708,-1394.0,0.00032054,2]
[311824263,1705438243717,-500.0,0.00032054,2]
[311824265,1705438243725,-500.0,0.00032054,2]
[311824267,1705438243734,-472.35327518,0.00032054,2]
[311824269,1705438243743,-534.62,0.00032054,2]
[311824271,1705438243752,-500.0,0.00032054,2]
[311824273,1705438243761,-500.0,0.00032054,2]
[311824274,1705438243770,-500.0,0.00032054,2]
[311824276,1705438243780,-2151.26,0.00032054,2]
[311824278,1705438243792,-1145.58,0.00032054,2]
[311824280,1705438243802,-536.48,0.00032054,2]
[311824282,1705438243811,-837.58,0.00032054,2]
[311824284,1705438243820,-500.0,0.00032054,2]
[311824286,1705438243830,-500.0,0.00032054,2]
[311824288,1705438243839,-500.0,0.00032054,2]
[311824290,1705438243848,-500.0,0.00032054,2]
[311824292,1705438243858,-500.0,0.00032054,2]
[311824294,1705438243867,-500.0,0.00032054,2]
[311824296,1705438243875,-1908.01371133,0.00032054,2]
[311824301,1705438243914,-500.0,0.00031917,2]
[311824303,1705438243923,-8032.7,0.00032054,2]
[311824306,1705438243935,-4696.27919483,0.00032054,2]
[311824503,1705438659640,2273.69260881,0.00029,30]
[311824617,1705439432422,-3000.0,0.00025157,2]
[311824619,1705439432432,-1986.17747693,0.00025158,2]
[311824621,1705439432441,-5998.21298933,0.00025159,2]
[311824623,1705439432450,-873.46854379,0.00025159,2]
[311824625,1705439432458,-2601.67617983,0.00025297,2]
[311824627,1705439432467,-2101.23068297,0.00025539,2]
[311824629,1705439432476,-2071.67545931,0.00025539,2]
[311824631,1705439432485,-1054.48707625,0.00025539,7]
[311824633,1705439432495,-563.84885477,0.00025539,2]
[311824635,1705439432504,-155.0,0.00025539,2]
[311824637,1705439432514,-260.31082637,0.00025539,2]
[311824639,1705439432523,-302.75545275,0.0002554,2]
[311824641,1705439432533,-231.565,0.0002554,2]
[311824643,1705439432543,-19178.3947085,0.00025541,2]
[311824645,1705439432553,-240.99063108,0.00026,2]
[311824647,1705439432562,-526.19977784,0.00026,2]
[311824649,1705439432571,-155.28156913,0.000265,2]
[311824651,1705439432580,-183.90432024,0.000265,2]
[311824653,1705439432589,-155.1488772,0.00026501,2]
[311824654,1705439432597,-724.78,0.0002749,3]
[311824656,1705439432607,-1241.09,0.0002749,3]
[311824658,1705439432616,-196.17678123,0.00027499,2]
[311824660,1705439432625,-15596.90452198,0.000275,2]
[311824703,1705439438541,-1157.46997482,0.000275,2]
[311824704,1705439438553,-2435.86108579,0.000275,2]
[311824709,1705439438595,-2709.11994142,0.000275,2]
[311824941,1705439441328,-1243.64942372,0.000275,2]
[311824943,1705439441339,-4759.72875217,0.000275,2]
[311824945,1705439441350,-976.6996919,0.000275,2]
[311824947,1705439441362,-4563.65091331,0.000275,2]
[311824949,1705439441373,-6520.58608091,0.000275,2]
[311824951,1705439441384,-2684.87863625,0.000275,2]
[311824953,1705439441394,-277.3697054,0.00029,2]
[311824955,1705439441404,-462.20034457,0.00029014,5]
[311824957,1705439441414,-21321.74637791,0.00029014,5]
[311824959,1705439441423,-198.8089634,0.00029678,2]
[311824961,1705439441433,-151.2846571,0.00029761,2]
[311824964,1705439441442,-150.0,0.00029954,2]
[311824965,1705439441452,-243.86975387,0.0003,4]
[311824967,1705439441462,-575.42148162,0.00030445,4]
[311824970,1705439441474,-154.11691844,0.00031021,7]
[311824971,1705439441483,-197.71995628,0.00031596,4]
[311824973,1705439441493,-1034.24,0.0003177,3]
[311824976,1705439441505,-500.0,0.0003178,2]
[311824977,1705439441514,-500.0,0.0003178,2]
[311824979,1705439441526,-500.0,0.0003178,2]
[311824981,1705439441536,-500.0,0.0003178,2]
[311824983,1705439441547,-500.0,0.0003178,2]